fUSD/lending_fUSD_20250109
["ID","MTS","AMOUNT","RATE_DAILY","PERIOD"]
[348282523,1736431879429,-1007.159246,0.00011366,2]
[348282524,1736431879439,-500.0,0.00011366,2]
[348282525,1736431879448,-561.21,0.00011366,2]
[348282526,1736431879459,-500.0,0.00011366,2]
[348282527,1736431879468,-1682.89,0.00011366,2]
[348282528,1736431879478,-500.0,0.00011366,2]
[348282529,1736431879487,-1970.74,0.00011366,2]
[348282530,1736431879499,-164.36,0.00011366,2]
[348282531,1736431879512,-500.0,0.00011366,2]
[348282532,1736431879522,-500.0,0.00011366,2]
[348282533,1736431879531,-1475.63,0.00011366,2]
[348282534,1736431879541,-500.0,0.00011366,2]
[348282535,1736431879551,-2202.96,0.00011366,2]
[348282536,1736431879561,-3114.12,0.00011366,2]
[348282537,1736431879572,-500.0,0.00011366,2]
[348282538,1736431879582,-500.0,0.00011366,2]
[348282539,1736431879592,-733.84,0.00011366,2]
[348282540,1736431879602,-3459.41,0.00011366,2]
[348282541,1736431879611,-1612.09,0.00011366,2]
[348282542,1736431879622,-566.63,0.00011366,2]
[348282543,1736431879631,-500.0,0.00011366,2]
[348282544,1736431879642,-1460.46,0.00011366,2]
[348282545,1736431879652,-500.0,0.00011366,2]
[348282546,1736431879662,-1720.55,0.00011366,2]
[348282547,1736431879672,-591.01,0.00011366,2]
[348282548,1736431879682,-500.0,0.00011366,2]
[348282549,1736431879692,-851.24,0.00011366,2]
[348282550,1736431879702,-1082.16,0.00011366,2]
[348282551,1736431879712,-500.0,0.00011366,2]
[348282552,1736431879722,-1931.99,0.00011366,2]
[348282553,1736431879732,-500.0,0.00011366,2]
[348282554,1736431879741,-500.0,0.00011366,2]
[348282555,1736431879750,-500.0,0.00011366,2]
[348282556,1736431879763,-500.0,0.00011366,2]
[348282557,1736431879773,-500.0,0.00011366,2]
[348282558,1736431879783,-572.57,0.00011366,2]
[348282559,1736431879793,-500.0,0.00011366,2]
[348282560,1736431879802,-500.0,0.00011366,2]
[348282561,1736431879813,-500.0,0.00011366,2]
[348282562,1736431879822,-500.0,0.00011366,2]
[348282563,1736431879832,-500.0,0.00011366,2]
[348282564,1736431879842,-500.0,0.00011366,2]
[348282565,1736431879853,-500.0,0.00011366,2]
[348282566,1736431879863,-786.75,0.00011366,2]
[348282567,1736431879873,-500.0,0.00011366,2]
[348282568,1736431879882,-199.46862163,0.00011366,2]
[348282569,1736431879892,-851.23,0.00011366,2]
[348282570,1736431879901,-1977.57,0.00011366,2]
[348282571,1736431879911,-500.0,0.00011366,2]
[348282572,1736431879921,-500.0,0.00011366,2]
[348282573,1736431879931,-2212.93,0.00011366,2]
[348282574,1736431879940,-442.32,0.00011366,2]
[348282575,1736431879949,-500.0,0.00011366,2]
[348282576,1736431879959,-500.0,0.00011366,2]
[348282577,1736431879968,-500.0,0.00011366,2]
[348282578,1736431879977,-500.0,0.00011366,2]
[348282579,1736431879987,-624.44,0.00011366,2]
[348282580,1736431879996,-326.07,0.00011367,2]
[348282581,1736431880008,-242.68,0.00011367,2]
[348282582,1736431880017,-500.0,0.00011367,2]
[348282583,1736431880028,-500.0,0.00011367,2]
[348282584,1736431880038,-500.0,0.00011367,2]
[348282585,1736431880048,-284.48,0.00011367,2]
[348282586,1736431880058,-500.0,0.00011367,2]
[348282587,1736431880067,-500.0,0.00011367,2]
[348282588,1736431880077,-500.0,0.00011367,2]
[348282589,1736431880087,-500.0,0.00011367,2]
[348282590,1736431880097,-500.0,0.00011367,2]
[348282591,1736431880106,-375.25,0.00011367,2]
[348282592,1736431880115,-500.0,0.00011367,2]
[348282593,1736431880124,-500.0,0.00011367,2]
[348282594,1736431880134,-543.13,0.00011367,2]
[348282595,1736431880146,-378.87,0.00011367,2]
[348282596,1736431880160,-589.70700499,0.00011367,2]
[348282597,1736431880170,-616.48,0.00011367,2]
[348282598,1736431880180,-500.0,0.00011367,2]
[348282599,1736431880190,-500.0,0.00011367,2]
[348282600,1736431880199,-500.0,0.00011367,2]
[348282601,1736431880208,-500.0,0.00011367,2]
[348282602,1736431880217,-316.15,0.00011367,2]
[348282603,1736431880227,-500.0,0.00011367,2]
[348282604,1736431880236,-500.0,0.00011367,2]
[348282605,1736431880246,-500.0,0.00011367,2]
[348282606,1736431880258,-2099.3,0.00011367,2]
[348282607,1736431880267,-152.36,0.00011367,2]
[348282608,1736431880277,-500.0,0.00011367,2]
[348282609,1736431880287,-500.0,0.00011367,2]
[348282610,1736431880297,-500.0,0.00011367,2]
[348282611,1736431880306,-500.0,0.00011367,2]
[348282612,1736431880316,-500.0,0.00011367,2]
[348282613,1736431880325,-500.0,0.00011367,2]
[348282614,1736431880335,-500.0,0.00011367,2]
[348282615,1736431880345,-500.0,0.00011367,2]
[348282616,1736431880355,-620.31,0.00011367,2]
[348282617,1736431880364,-500.0,0.00011367,2]
[348282618,1736431880374,-1536.68,0.00011367,2]
[348282619,1736431880383,-500.0,0.00011367,2]
[348282620,1736431880392,-500.0,0.00011367,2]
[348282621,1736431880402,-500.0,0.00011367,2]
[348282622,1736431880411,-500.0,0.00011367,2]
[348282623,1736431880423,-500.0,0.00011367,2]
[348282624,1736431880432,-500.0,0.00011367,2]
[348282625,1736431880442,-462.78058935,0.00011367,2]
[348282626,1736431880452,-2004.11,0.00011367,2]
[348282627,1736431880462,-500.0,0.00011367,2]
[348282628,1736431880472,-500.0,0.00011367,2]
[348282629,1736431880482,-500.0,0.00011367,2]
[348282630,1736431880491,-500.0,0.00011367,2]
[348282631,1736431880504,-500.0,0.00011367,2]
[348282632,1736431880516,-500.0,0.00011367,2]
[348282633,1736431880526,-500.0,0.00011367,2]
[348282634,1736431880536,-500.0,0.00011367,2]
[348282635,1736431880546,-1380.04,0.00011367,2]
[348282636,1736431880556,-500.0,0.00011367,2]
[348282637,1736431880565,-500.0,0.00011367,2]
[348282638,1736431880575,-500.0,0.00011367,2]
[348282639,1736431880586,-500.0,0.00011367,2]
[348282640,1736431880595,-500.0,0.00011367,2]
[348282641,1736431880605,-500.0,0.00011367,2]
[348282642,1736431880615,-500.0,0.00011367,2]
[348282643,1736431880624,-500.0,0.00011367,2]
[348282644,1736431880633,-500.0,0.00011367,2]
[348282645,1736431880643,-401.28,0.00011367,2]
[348282646,1736431880652,-500.0,0.00011367,2]
[348282647,1736431880662,-500.0,0.00011367,2]
[348282648,1736431880671,-500.0,0.00011367,2]
[348282649,1736431880680,-500.0,0.00011367,2]
[348282650,1736431880689,-500.0,0.00011367,2]
[348282651,1736431880832,-500.0,0.00011367,2]
[348282652,1736431880843,-500.0,0.00011367,2]
[348282653,1736431880854,-500.0,0.00011367,2]
[348282654,1736431880864,-500.0,0.00011367,2]
[348282655,1736431880873,-500.0,0.00011367,2]
[348282656,1736431880883,-622.88,0.00011367,2]
[348282657,1736431880891,-242.64,0.00011367,2]
[348282658,1736431880901,-500.0,0.00011367,2]
[348282659,1736431880911,-500.0,0.00011367,2]
[348282660,1736431880920,-500.0,0.00011367,2]
[348282661,1736431880930,-500.0,0.00011367,2]
[348282662,1736431880942,-500.0,0.00011367,2]
[348282663,1736431880952,-506.24878557,0.00011367,2]
[348282664,1736431880963,-500.0,0.00011367,2]
[348282665,1736431880974,-500.0,0.00011367,2]
[348282666,1736431880985,-500.0,0.00011367,2]
[348282667,1736431880995,-500.0,0.00011367,2]
[348282668,1736431881004,-502.70555494,0.00011367,2]
[348282669,1736431881018,-500.0,0.00011367,2]
[348282670,1736431881028,-500.0,0.00011367,2]
[348282671,1736431881037,-500.0,0.00011367,2]
[348282672,1736431881047,-500.0,0.00011367,2]
[348282673,1736431881057,-500.0,0.00011367,2]
[348282674,1736431881067,-500.0,0.00011367,2]
[348282675,1736431881077,-500.0,0.00011367,2]
[348282676,1736431881087,-500.0,0.00011367,2]
[348282677,1736431881097,-500.0,0.00011367,2]
[348282678,1736431881106,-500.0,0.00011367,2]
[348282679,1736431881115,-500.0,0.00011367,2]
[348282680,1736431881125,-561.21,0.00011367,2]
[348282681,1736431881135,-336.06,0.00011367,2]
[348282682,1736431881145,-500.0,0.00011367,2]
[348282683,1736431881155,-500.0,0.00011367,2]
[348282684,1736431881165,-500.0,0.00011367,2]
[348282685,1736431881175,-500.0,0.00011367,2]
[348282686,1736431881187,-254.47,0.00011367,2]
[348282687,1736431881196,-500.0,0.00011367,2]
[348282688,1736431881206,-500.0,0.00011367,2]
[348282689,1736431881215,-500.0,0.00011367,2]
[348282690,1736431881224,-1082.03,0.00011367,2]
[348282691,1736431881234,-500.0,0.00011367,2]
[348282692,1736431881243,-500.0,0.00011367,2]
[348282693,1736431881257,-500.0,0.00011367,2]
[348282694,1736431881266,-500.0,0.00011367,2]
[348282695,1736431881276,-500.0,0.00011367,2]
[348282696,1736431881285,-479.28,0.00011367,2]
[348282697,1736431881295,-500.0,0.00011367,2]
[348282698,1736431881304,-500.0,0.00011367,2]
[348282699,1736431881313,-500.0,0.00011367,2]
[348282700,1736431881323,-500.0,0.00011367,2]
[348282701,1736431881332,-500.0,0.00011367,2]
[348282702,1736431881342,-484.55,0.00011367,2]
[348282703,1736431881352,-752.54,0.00011367,2]
[348282704,1736431881361,-782.4,0.00011368,2]
[348282705,1736431881371,-500.0,0.00011368,2]
[348282706,1736431881381,-1000.48,0.00011368,2]
[348282707,1736431881391,-722.5,0.00011368,2]
[348282708,1736431881401,-608.97,0.00011368,2]
[348282709,1736431881411,-3501.74,0.00011368,2]
[348282710,1736431881425,-3501.74,0.00011368,2]
[348282711,1736431881435,-1038.24,0.00011368,2]
[348282712,1736431881445,-1572.69,0.00011368,2]
[348282713,1736431881455,-705.58,0.00011368,2]
[348282714,1736431881466,-772.69,0.00011368,2]
[348282715,1736431881476,-555.89,0.00011368,2]
[348282716,1736431881485,-500.0,0.00011368,2]
[348282717,1736431881497,-500.0,0.00011368,2]
[348282718,1736431881509,-500.0,0.00011368,2]
[348282719,1736431881519,-500.0,0.00011368,2]
[348282720,1736431881528,-500.0,0.00011368,2]
[348282721,1736431881538,-500.0,0.00011368,2]
[348282722,1736431881548,-252.8,0.000114,2]
[348282723,1736431881557,-437.08,0.00011479,2]
[348282724,1736431881567,-978.7,0.00011479,2]
[348282725,1736431881577,-437.08,0.00011479,2]
[348282726,1736431881586,-437.08,0.00011479,2]
[348282727,1736431881597,-437.08,0.00011479,2]
[348282728,1736431881606,-436.01,0.00011479,2]
[348282729,1736431881618,-203.83894166,0.00011515,2]
[348282730,1736431881628,-151.802,0.00011517,2]
[348282731,1736431881637,-3895.0,0.00011542,2]
[348282732,1736431881647,-150.0,0.00011542,2]
[348282733,1736431881657,-1103.0,0.00011542,2]
[348282734,1736431881667,-151.0,0.0001156,2]
[348282735,1736431881678,-883.54,0.00011639,2]
[348282736,1736431881687,-1341.04,0.00011639,2]
[348282737,1736431881696,-1285.16,0.00011639,2]
[348282738,1736431881706,-561.94,0.00011639,2]
[348282739,1736431881715,-538.52,0.00011639,2]
[348282740,1736431881725,-610.55,0.00011639,2]
[348282741,1736431881734,-2117.55,0.00011639,2]
[348282742,1736431881744,-1021.81,0.00011639,2]
[348282743,1736431881753,-500.0,0.00011639,2]
[348282744,1736431881765,-500.0,0.00011639,2]
[348282745,1736431881775,-500.0,0.00011639,2]
[348282746,1736431881785,-500.0,0.00011639,2]
[348282747,1736431881795,-500.0,0.00011639,2]
[348282748,1736431881805,-1000.0,0.00011639,2]
[348282749,1736431881815,-500.0,0.00011639,2]
[348282750,1736431881824,-500.0,0.00011639,2]
[348282751,1736431881834,-829.48,0.00011639,2]
[348282752,1736431881843,-542.37,0.00011639,2]
[348282753,1736431881853,-519.77,0.00011639,2]
[348282754,1736431881863,-500.0,0.0001164,2]
[348282755,1736431881872,-500.0,0.0001164,2]
[348282756,1736431881882,-500.0,0.0001164,2]
[348282757,1736431881891,-500.0,0.0001164,2]
[348282758,1736431881901,-500.0,0.0001164,2]
[348282759,1736431881910,-500.0,0.0001164,2]
[348282760,1736431881920,-500.0,0.0001164,2]
[348282761,1736431881930,-391.56,0.0001164,2]
[348282762,1736431881939,-500.0,0.0001164,2]
[348282763,1736431881949,-500.0,0.0001164,2]
[348282764,1736431881959,-500.0,0.0001164,2]
[348282765,1736431881969,-500.0,0.0001164,2]
[348282766,1736431881979,-500.0,0.0001164,2]
[348282767,1736431881988,-500.0,0.0001164,2]
[348282768,1736431881997,-637.31,0.0001164,2]
[348282769,1736431882010,-500.0,0.0001164,2]
[348282770,1736431882020,-500.0,0.0001164,2]
[348282771,1736431882030,-500.0,0.0001164,2]
[348282772,1736431882040,-978.97,0.0001164,2]
[348282773,1736431882050,-500.0,0.0001164,2]
[348282774,1736431882059,-500.0,0.0001164,2]
[348282775,1736431882069,-500.0,0.0001164,2]
[348282776,1736431882079,-500.0,0.0001164,2]
[348282777,1736431882089,-500.0,0.0001164,2]
[348282778,1736431882099,-500.0,0.0001164,2]
[348282779,1736431882110,-500.0,0.0001164,2]
[348282780,1736431882119,-368.06,0.0001164,2]
[348282781,1736431882128,-500.0,0.0001164,2]
[348282782,1736431882138,-500.0,0.0001164,2]
[348282783,1736431882148,-500.0,0.0001164,2]
[348282784,1736431882158,-500.0,0.0001164,2]
[348282785,1736431882168,-500.0,0.0001164,2]
[348282786,1736431882178,-500.0,0.0001164,2]
[348282787,1736431882188,-500.0,0.0001164,2]
[348282788,1736431882198,-500.0,0.0001164,2]
[348282789,1736431882207,-500.0,0.0001164,2]
[348282790,1736431882217,-500.0,0.0001164,2]
[348282791,1736431882228,-500.0,0.0001164,2]
[348282792,1736431882237,-298.97116303,0.0001164,2]
[348282793,1736431882247,-500.0,0.0001164,2]
[348282794,1736431882260,-500.0,0.0001164,2]
[348282795,1736431882269,-242.08,0.0001164,2]
[348282796,1736431882279,-500.0,0.0001164,2]
[348282797,1736431882288,-253.54,0.0001164,2]
[348282798,1736431882298,-500.0,0.0001164,2]
[348282799,1736431882308,-500.0,0.0001164,2]
[348282800,1736431882318,-500.0,0.0001164,2]
[348282801,1736431882328,-500.0,0.0001164,2]
[348282802,1736431882338,-500.0,0.0001164,2]
[348282803,1736431882348,-500.0,0.0001164,2]
[348282804,1736431882359,-500.0,0.0001164,2]
[348282805,1736431882369,-414.94,0.0001164,2]
[348282806,1736431882377,-500.0,0.0001164,2]
[348282807,1736431882387,-500.0,0.0001164,2]
[348282808,1736431882397,-500.0,0.0001164,2]
[348282809,1736431882407,-2395.35,0.0001164,2]
[348282810,1736431882419,-500.0,0.0001164,2]
[348282811,1736431882430,-500.0,0.0001164,2]
[348282812,1736431882440,-1465.38,0.0001164,2]
[348282813,1736431882450,-500.0,0.0001164,2]
[348282814,1736431882461,-1065.2,0.0001164,2]
[348282815,1736431882473,-500.0,0.0001164,2]
[348282816,1736431882484,-500.0,0.0001164,2]
[348282817,1736431882494,-1045.56,0.0001164,2]
[348282818,1736431882511,-5712.3,0.0001164,2]
[348282819,1736431882520,-156.84,0.0001164,2]
[348282820,1736431882529,-702.11,0.0001164,2]
[348282821,1736431882538,-500.0,0.0001164,2]
[348282822,1736431882547,-2891.27,0.0001164,2]
[348282823,1736431882557,-500.0,0.0001164,2]
[348282824,1736431882567,-500.0,0.0001164,2]
[348282825,1736431882578,-500.0,0.0001164,2]
[348282826,1736431882589,-815.782912,0.0001164,2]
[348282827,1736431882598,-819.39,0.0001164,2]
[348282828,1736431882609,-500.0,0.0001164,2]
[348282829,1736431882620,-515.58,0.0001164,2]
[348282830,1736431882630,-158.48,0.0001164,2]
[348282831,1736431882640,-500.0,0.0001164,2]
[348282832,1736431882651,-1007.159246,0.0001164,2]
[348282833,1736431882661,-500.0,0.0001164,2]
[348282834,1736431882671,-561.21,0.0001164,2]
[348282835,1736431882681,-500.0,0.0001164,2]
[348282836,1736431882691,-1682.89,0.0001164,2]
[348282837,1736431882700,-500.0,0.0001164,2]
[348282838,1736431882711,-1970.74,0.0001164,2]
[348282839,1736431882721,-500.0,0.0001164,2]
[348282840,1736431882731,-500.0,0.0001164,2]
[348282841,1736431882740,-1475.63,0.0001164,2]
[348282842,1736431882751,-500.0,0.0001164,2]
[348282843,1736431882765,-2202.96,0.0001164,2]
[348282844,1736431882775,-3114.12,0.0001164,2]
[348282845,1736431882785,-500.0,0.0001164,2]
[348282846,1736431882794,-190.26021061,0.0001164,2]
[348282847,1736431882804,-3459.41,0.0001164,2]
[348282848,1736431882814,-733.84,0.0001164,2]
[348282849,1736431882824,-1612.09,0.0001164,2]
[348282850,1736431882835,-500.0,0.0001164,2]
[348282851,1736431882846,-1460.46,0.0001164,2]
[348282852,1736431882856,-1720.55,0.0001164,2]
[348282853,1736431882866,-500.0,0.0001164,2]
[348282854,1736431882876,-591.01,0.0001164,2]
[348282855,1736431882886,-500.0,0.0001164,2]
[348282856,1736431882897,-851.24,0.0001164,2]
[348282857,1736431882907,-1082.16,0.0001164,2]
[348282858,1736431882917,-500.0,0.0001164,2]
[348282859,1736431882927,-1931.99,0.0001164,2]
[348282860,1736431882936,-386.12,0.0001164,2]
[348282861,1736431882946,-500.0,0.0001164,2]
[348282862,1736431882956,-500.0,0.0001164,2]
[348282863,1736431882965,-256.6,0.0001164,2]
[348282864,1736431882975,-500.0,0.0001164,2]
[348282865,1736431882984,-572.57,0.0001164,2]
[348282866,1736431882994,-535.12998106,0.0001164,2]
[348282867,1736431883003,-500.0,0.0001164,2]
[348282868,1736431883018,-500.0,0.0001164,2]
[348282869,1736431883027,-500.0,0.0001164,2]
[348282870,1736431883038,-500.0,0.0001164,2]
[348282871,1736431883048,-500.0,0.0001164,2]
[348282872,1736431883057,-500.0,0.0001164,2]
[348282873,1736431883067,-786.75,0.0001164,2]
[348282874,1736431883077,-421.6,0.0001164,2]
[348282875,1736431883087,-851.23,0.0001164,2]
[348282876,1736431883096,-1977.57,0.0001164,2]
[348282877,1736431883106,-500.0,0.0001164,2]
[348282878,1736431883116,-2212.93,0.0001164,2]
[348282879,1736431883126,-329.24,0.0001164,2]
[348282880,1736431883135,-500.0,0.0001164,2]
[348282881,1736431883145,-500.0,0.0001164,2]
[348282882,1736431883155,-500.0,0.0001164,2]
[348282883,1736431883164,-500.0,0.00011641,2]
[348282884,1736431883174,-423.66,0.00011641,2]
[348282885,1736431883184,-500.0,0.00011641,2]
[348282886,1736431883194,-500.0,0.00011641,2]
[348282887,1736431883203,-431.51,0.00011641,2]
[348282888,1736431883214,-500.0,0.00011641,2]
[348282889,1736431883224,-594.41,0.00011641,2]
[348282890,1736431883233,-527.57,0.00011641,2]
[348282891,1736431883243,-500.0,0.00011641,2]
[348282892,1736431883253,-500.0,0.00011641,2]
[348282893,1736431883267,-589.651018,0.00011641,2]
[348282894,1736431883277,-349.2,0.00011641,2]
[348282895,1736431883286,-500.0,0.00011641,2]
[348282896,1736431883296,-500.0,0.00011641,2]
[348282897,1736431883307,-500.0,0.00011641,2]
[348282898,1736431883316,-500.0,0.00011641,2]
[348282899,1736431883326,-500.0,0.00011641,2]
[348282900,1736431883335,-500.0,0.00011641,2]
[348282901,1736431883345,-500.0,0.00011641,2]
[348282902,1736431883355,-500.0,0.00011641,2]
[348282903,1736431883502,-500.0,0.00011641,2]
[348282904,1736431883517,-1536.68,0.00011641,2]
[348282905,1736431883528,-500.0,0.00011641,2]
[348282906,1736431883539,-500.0,0.00011641,2]
[348282907,1736431883548,-500.0,0.00011641,2]
[348282908,1736431883558,-478.99,0.00011641,2]
[348282909,1736431883568,-500.0,0.00011641,2]
[348282910,1736431883579,-2004.11,0.00011641,2]
[348282911,1736431883589,-500.0,0.00011641,2]
[348282912,1736431883599,-500.0,0.00011641,2]
[348282913,1736431883609,-586.88,0.00011641,2]
[348282914,1736431883619,-500.0,0.00011641,2]
[348282915,1736431883629,-500.0,0.00011641,2]
[348282916,1736431883640,-500.0,0.00011641,2]
[348282917,1736431883650,-500.0,0.00011641,2]
[348282918,1736431883659,-1380.04,0.00011641,2]
[348282919,1736431883669,-500.0,0.00011641,2]
[348282920,1736431883679,-597.06,0.00011641,2]
[348282921,1736431883689,-500.0,0.00011641,2]
[348282922,1736431883698,-500.0,0.00011641,2]
[348282923,1736431883707,-500.0,0.00011641,2]
[348282924,1736431883716,-626.0965722,0.00011641,2]
[348282925,1736431883725,-500.0,0.00011641,2]
[348282926,1736431883735,-558.76,0.00011641,2]
[348282927,1736431883745,-500.0,0.00011641,2]
[348282928,1736431883756,-500.0,0.00011641,2]
[348282929,1736431883767,-500.0,0.00011641,2]
[348282930,1736431883776,-591.89790047,0.00011641,2]
[348282931,1736431883786,-500.0,0.00011641,2]
[348282932,1736431883796,-500.0,0.00011641,2]
[348282933,1736431883806,-503.60175014,0.00011641,2]
[348282934,1736431883816,-500.0,0.00011641,2]
[348282935,1736431883826,-622.88,0.00011641,2]
[348282936,1736431883836,-500.0,0.00011641,2]
[348282937,1736431883846,-500.0,0.00011641,2]
[348282938,1736431883855,-500.0,0.00011641,2]
[348282939,1736431883865,-264.09,0.00011641,2]
[348282940,1736431883874,-500.0,0.00011641,2]
[348282941,1736431883884,-500.0,0.00011641,2]
[348282942,1736431883894,-500.0,0.00011641,2]
[348282943,1736431883904,-500.0,0.00011641,2]
[348282944,1736431883913,-500.0,0.00011641,2]
[348282945,1736431883923,-247.71,0.00011641,2]
[348282946,1736431883933,-527.55,0.00011641,2]
[348282947,1736431883943,-561.21,0.00011641,2]
[348282948,1736431883953,-500.0,0.00011641,2]
[348282949,1736431883962,-500.0,0.00011641,2]
[348282950,1736431883972,-378.43,0.00011641,2]
[348282951,1736431883981,-500.0,0.00011641,2]
[348282952,1736431883991,-508.30756083,0.00011641,2]
[348282953,1736431884002,-1082.03,0.00011641,2]
[348282954,1736431884015,-500.0,0.00011641,2]
[348282955,1736431884024,-500.0,0.00011641,2]
[348282956,1736431884034,-510.18,0.00011641,2]
[348282957,1736431884044,-500.0,0.00011641,2]
[348282958,1736431884054,-500.0,0.00011641,2]
[348282959,1736431884065,-177.24,0.00011641,2]
[348282960,1736431884074,-264.48,0.00011641,2]
[348282961,1736431884084,-500.0,0.00011641,2]
[348282962,1736431884094,-500.0,0.00011641,2]
[348282963,1736431884103,-752.54,0.00011641,2]
[348282964,1736431884113,-782.4,0.00011642,2]
[348282965,1736431884122,-500.0,0.00011642,2]
[348282966,1736431884132,-179.094,0.00011642,2]
[348282967,1736431884142,-1000.48,0.00011642,2]
[348282968,1736431884152,-722.5,0.00011642,2]
[348282969,1736431884162,-608.97,0.00011642,2]
[348282970,1736431884172,-3501.74,0.00011642,2]
[348282971,1736431884183,-3501.74,0.00011642,2]
[348282972,1736431884193,-1572.69,0.00011642,2]
[348282973,1736431884203,-705.58,0.00011642,2]
[348282974,1736431884212,-772.69,0.00011642,2]
[348282975,1736431884222,-555.89,0.00011642,2]
[348282976,1736431884231,-500.0,0.00011642,2]
[348282977,1736431884240,-500.0,0.00011642,2]
[348282978,1736431884250,-500.0,0.00011642,2]
[348282979,1736431884263,-500.0,0.00011642,2]
[348282980,1736431884272,-500.0,0.00011642,2]
[348282981,1736431884282,-500.0,0.00011642,2]
[348282982,1736431884292,-3139.191,0.00011643,2]
[348282983,1736431884301,-150.0,0.0001166,2]
[348282984,1736431884311,-203.83894166,0.00011669,2]
[348282985,1736431884320,-156.472,0.0001168,2]
[348282986,1736431884330,-2013.0,0.0001172,2]
[348282987,1736431884340,-318.011,0.0001172,2]
[348282988,1736431884350,-203.83894166,0.00011823,2]
[348282989,1736431884360,-883.54,0.00011913,2]
[348282990,1736431884369,-1341.04,0.00011913,2]
[348282991,1736431884379,-1285.16,0.00011913,2]
[348282992,1736431884390,-561.94,0.00011913,2]
[348282993,1736431884399,-538.52,0.00011913,2]
[348282994,1736431884409,-610.55,0.00011913,2]
[348282995,1736431884421,-2117.55,0.00011913,2]
[348282996,1736431884431,-1021.81,0.00011913,2]
[348282997,1736431884440,-500.0,0.00011913,2]
[348282998,1736431884451,-500.0,0.00011913,2]
[348282999,1736431884461,-559.2,0.00011913,2]
[348283000,1736431884471,-500.0,0.00011913,2]
[348283001,1736431884482,-500.0,0.00011913,2]
[348283002,1736431884491,-1000.0,0.00011913,2]
[348283003,1736431884504,-500.0,0.00011913,2]
[348283004,1736431884518,-500.0,0.00011913,2]
[348283005,1736431884528,-829.48,0.00011913,2]
[348283006,1736431884538,-542.37,0.00011913,2]
[348283007,1736431884547,-519.77,0.00011913,2]
[348283008,1736431884557,-151.71,0.00011914,2]
[348283009,1736431884566,-500.0,0.00011914,2]
[348283010,1736431884576,-500.0,0.00011914,2]
[348283011,1736431884587,-500.0,0.00011914,2]
[348283012,1736431884599,-500.0,0.00011914,2]
[348283013,1736431884610,-236.62789127,0.00011914,2]
[348283014,1736431884621,-170.62,0.00011914,2]
[348283015,1736431884632,-500.0,0.00011914,2]
[348283016,1736431884643,-644.52,0.00011914,2]
[348283017,1736431884653,-500.0,0.00011914,2]
[348283018,1736431884664,-500.0,0.00011914,2]
[348283019,1736431884674,-528.27,0.00011914,2]
[348283020,1736431884684,-500.0,0.00011914,2]
[348283021,1736431884694,-500.0,0.00011914,2]
[348283022,1736431884704,-500.0,0.00011914,2]